bitfinex-derivatives/quotes_ETHF0:USTF0_20251008
["timestamp","ask_amount","ask_price","bid_price","bid_amount"]
[1759914148208,2.02944687,4483.8,4483.7,44.4993]
[1759914148412,2.25544687,4483.8,4483.7,44.4993]
[1759914150717,0.75504687,4483.8,4483.7,44.4993]
[1759914152115,2.25544687,4483.8,4483.7,44.4993]
[1759914153315,0.75504687,4483.8,4483.7,44.4993]
[1759914157515,1.20098076,4484.8,4484.5,2.0982]
[1759914157712,1.7254,4484.7,4484.6,3.6993]
[1759914157914,2.7789,4484.7,4484.6,3.6993]
[1759914158114,5.69425572,4484.7,4484.6,3.6993]
[1759914160019,6.68115572,4484.7,4484.6,3.6993]
[1759914160322,6.68115572,4484.7,4484.6,2.0982]
[1759914161322,4.64075572,4484.7,4484.6,3.5498]
[1759914161622,5.65815572,4484.7,4484.6,3.5498]
[1759914161924,3.14035572,4484.7,4484.6,3.5498]
[1759914162323,5.60385572,4484.7,4484.6,3.5498]
[1759914162522,6.66645572,4484.7,4484.6,3.5498]
[1759914163121,3.5261,4484.2,4484.1,2.41015]
[1759914163426,3.7511,4484.2,4484.1,2.0089]
[1759914164526,6.66911907,4484.2,4484.1,2.0089]
[1759914164921,4.58911907,4484.2,4484.1,3.4605]
[1759914165224,5.60651907,4484.2,4484.1,3.4605]
[1759914165420,7.07035907,4484.2,4483.6,1.4516]
[1759914165625,7.07035907,4484.2,4483.6,3.86179]
[1759914165626,3.5261,4483.7,4483.6,3.86179]
[1759914165828,3.7511,4483.7,4483.6,3.86179]
[1759914166126,0.225,4483.7,4483.6,3.86179]
[1759914166721,3.6941,4483.7,4483.6,2.41019]
[1759914166925,3.6941,4483.7,4483.6,3.91479]
[1759914167123,2.6877,4483.7,4483.6,44.71479]
[1759914168329,1.712,4483.7,4483.6,44.71479]
[1759914168828,0.225,4483.7,4483.6,44.71479]
[1759914169225,1.20215577,4484.2,4484.1,3.5338]
[1759914169427,0.225,4484.2,4484.1,2.0292]
[1759914169627,7.09846147,4484.2,4484.1,2.0292]
[1759914170129,3.62936147,4484.2,4484.1,3.93505]
[1759914170328,3.6293636,4484.2,4484.1,3.93505]
[1759914170631,7.0984636,4484.2,4484.1,3.5338]
[1759914172032,6.0920636,4484.2,4484.1,3.5338]
[1759914172433,7.0984636,4484.2,4484.1,3.5338]
[1759914172631,7.0984636,4484.2,4484.1,0.9991]
[1759914172829,7.0984636,4484.2,4484.1,2.0292]
[1759914173237,5.8670636,4484.2,4484.1,3.5338]
[1759914173436,7.0984636,4484.2,4484.1,3.5338]
[1759914174239,7.0984636,4484.2,4484.1,2.0292]
[1759914175135,3.4043636,4484.2,4484.1,3.5338]
[1759914175338,3.4043636,4484.2,4484.1,2.93595]
[1759914175339,0.225,4484.2,4484.1,2.93595]
[1759914175632,0.225,4484.2,4484.1,3.93505]
[1759914176226,1.48942425,4484.9,4484.8,0.9991]
[1759914176227,0.97812425,4484.9,4484.8,0.9991]
[1759914176533,4.90410558,4484.9,4484.8,2.0292]
[1759914176832,4.90410558,4484.9,4484.8,3.5338]
[1759914176833,6.10480558,4484.9,4484.8,3.5338]
[1759914177025,7.51238558,4484.9,4484.2,3.2078]
[1759914177229,7.51238558,4484.9,4483.9,1.40037]
[1759914177230,4.0725,4484.0,4483.9,1.40037]
[1759914177430,4.0725,4484.0,4483.1,3.2078]
[1759914177431,1.487,4483.9,4483.1,3.2078]
[1759914177633,2.4627,4483.2,4483.1,5.63834]
[1759914177840,2.6877,4483.2,4483.1,7.14294]
[1759914178137,2.6877,4483.2,4483.1,47.94294]
[1759914178842,3.4691,4482.9,4482.8,1.00089706]
[1759914179039,3.6941,4482.9,4482.8,1.00089706]
[1759914179537,3.6941,4482.9,4482.8,41.80089706]
[1759914179840,3.6941,4482.9,4482.8,1.00089706]
[1759914181439,3.4691,4482.9,4482.8,1.00089706]
[1759914181639,3.6941,4482.9,4482.8,1.00089706]
[1759914181939,6.59708108,4482.9,4482.8,0.00179706]
[1759914182539,6.59708108,4482.9,4482.8,1.00089706]
[1759914183038,0.6034,4483.5,4483.4,0.40131]
[1759914183039,2.0904,4483.5,4483.4,0.40131]
[1759914183243,4.6948,4483.9,4483.8,2.0292]
[1759914183540,5.8955,4483.9,4483.8,3.5338]
[1759914183934,4.6948,4483.9,4483.8,3.5338]
[1759914184136,1.487,4484.3,4484.2,2.0292]
[1759914184433,2.6877,4484.3,4484.2,3.93504]
[1759914184640,3.6941,4484.3,4484.2,3.93504]
[1759914185137,3.6941,4484.3,4484.2,2.43044]
[1759914185442,6.60085403,4484.3,4484.2,2.43044]
[1759914188743,6.60085403,4484.3,4484.2,3.93504]
[1759914189435,5.59445403,4484.3,4484.2,3.93504]
[1759914189833,1.48942425,4484.9,4484.4,1.00305]
[1759914190036,2.46512425,4484.9,4484.8,2.43039]
[1759914190239,4.22236514,4484.9,4484.8,2.43039]
[1759914190440,7.1230077,4484.9,4484.8,2.43039]
[1759914191247,7.1230077,4484.9,4484.8,0.40119]
[1759914192138,6.59716681,4484.9,4484.8,1.40029]
[1759914192646,7.12297274,4484.9,4484.8,1.40029]
[1759914193238,6.59716681,4484.9,4484.8,1.40029]
[1759914193638,6.59716681,4484.9,4484.8,3.93499]
[1759914193845,0.00242425,4484.9,4484.8,3.93499]
[1759914194046,0.22742425,4484.9,4484.8,3.93499]
[1759914195637,0.00242425,4484.9,4484.8,3.93499]
[1759914195843,0.22742425,4484.9,4484.8,3.93499]
[1759914198149,3.2078,4485.5,4485.4,3.88033]
[1759914198337,3.95809904,4485.5,4485.4,3.88033]
[1759914198538,3.73309904,4485.5,4485.4,3.88033]
[1759914198742,3.95809904,4485.5,4485.4,3.88033]
[1759914198943,1.7667,4485.5,4485.4,3.88033]
[1759914199145,1.76888747,4485.5,4485.4,3.88033]
[1759914200649,0.00218747,4485.5,4485.4,3.88033]
[1759914200868,0.22718747,4485.5,4485.4,3.88033]
[1759914201051,1.76888747,4485.5,4485.4,3.88033]
[1759914201348,2.74498747,4485.5,4485.4,3.88033]
[1759914201949,4.38818747,4485.5,4485.4,3.88033]
[1759914202349,4.16318747,4485.5,4485.4,2.37583]
[1759914202550,7.3047369,4485.5,4485.4,0.40113]
[1759914202754,7.3047369,4485.5,4485.4,1.38223]
[1759914203050,5.6615369,4485.5,4485.4,3.88033]
[1759914203250,4.6854369,4485.5,4485.4,3.88033]
[1759914204250,0.22718747,4485.5,4485.4,3.88033]
[1759914206049,0.00218747,4485.5,4485.4,3.88033]
[1759914206250,0.22718747,4485.5,4485.4,3.88033]
[1759914206648,4.38818747,4485.5,4485.4,2.37583]
[1759914207252,4.38818747,4485.5,4485.2,4.59005]
[1759914207253,3.5485,4485.3,4485.2,4.59005]
[1759914207552,3.5485,4485.3,4485.2,5.58365]
[1759914207749,6.48028788,4485.3,4485.2,0.40115]
[1759914208355,1.5417,4485.2,4484.7,40.8]
[1759914208549,2.5178,4484.8,4484.7,41.20119]
[1759914208851,3.5485,4484.2,4484.1,2.37595]
[1759914209047,3.7735,4484.2,4484.1,2.37595]
[1759914209248,3.7735,4484.2,4484.1,43.17595]
[1759914209552,2.5178,4483.5,4483.4,7.27722431]
[1759914209948,4.161,4483.5,4483.4,5.58381]
[1759914210153,4.161,4483.5,4483.4,4.59021]
[1759914210352,4.386,4483.5,4483.4,1.38241]
[1759914210655,4.161,4483.5,4483.4,2.37601]
[1759914210857,4.386,4483.5,4483.4,2.37601]
[1759914211053,4.386,4483.5,4483.4,3.88051]
[1759914211259,4.161,4483.5,4483.4,3.88051]
[1759914211558,4.386,4483.5,4483.4,2.37601]
[1759914212550,2.7428,4483.5,4483.4,7.08831]
[1759914212755,1.7667,4483.5,4483.4,7.08831]
[1759914212955,1.5417,4483.5,4483.4,7.08831]
[1759914213258,1.7667,4483.5,4483.4,7.08831]
[1759914214060,4.386,4483.5,4483.4,7.08831]
[1759914214263,4.386,4483.5,4483.4,5.58381]
[1759914217861,7.27877682,4483.5,4483.3,0.40132]
[1759914218250,7.27877682,4483.5,4483.2,0.40132]
[1759914218960,7.27877682,4483.5,4483.3,0.40132]
[1759914219361,4.161,4483.0,4482.9,3.2078]
[1759914219558,4.386,4483.0,4482.9,4.1889]
[1759914219763,7.28696798,4483.0,4482.9,4.59026]
[1759914220258,7.28696798,4483.0,4482.9,3.2078]
[1759914220655,7.28696798,4483.0,4482.9,4.1889]
[1759914222252,7.28696798,4483.0,4482.9,3.2078]
[1759914222660,7.28696798,4483.0,4482.9,4.1975]
[1759914223368,0.6125,4484.0,4483.7,1.4646]
[1759914223659,4.0553,4484.0,4483.9,3.85737]
[1759914223865,4.2803,4484.0,4483.9,3.85737]
[1759914224164,7.18716308,4484.0,4483.9,2.39277]
[1759914225460,7.18716308,4484.0,4483.9,0.40127]
[1759914225659,10.39496308,4484.0,4483.9,0.40127]
[1759914225865,10.39496308,4484.0,4483.5,40.8]
[1759914225866,1.9948,4483.6,4483.5,41.2013]
[1759914226064,3.6678,4483.6,4483.5,41.2013]
[1759914226264,6.63195999,4483.6,4483.5,41.2013]
[1759914226563,6.63195999,4483.6,4483.5,0.4013]
[1759914228967,6.40695999,4483.6,4483.5,0.4013]
[1759914229162,6.63195999,4483.6,4483.5,0.4013]
[1759914233171,6.63195999,4483.6,4483.5,1.419]
[1759914234462,6.63195999,4483.6,4483.5,0.4013]
[1759914236460,6.63195999,4483.6,4483.5,1.419]
[1759914236664,4.18315999,4483.6,4483.5,4.5095]
[1759914236966,5.60495999,4483.6,4483.5,4.5095]
[1759914237167,5.60495999,4483.6,4483.5,3.9287]
[1759914237768,6.54785999,4483.6,4483.5,3.9287]
[1759914237969,6.54785999,4483.6,4483.5,1.419]
[1759914238759,6.54785999,4483.6,4483.5,2.973]
[1759914240373,6.54785999,4483.6,4483.5,0.4013]
[1759914240561,6.54785999,4483.6,4483.5,3.9287]
[1759914241268,3.18915999,4483.6,4483.5,3.9287]
[1759914241474,3.18915999,4483.6,4483.5,4.5095]
[1759914242478,5.63255999,4483.6,4483.5,4.5095]
[1759914242775,5.40755999,4483.6,4483.5,3.9287]
[1759914242968,4.38595999,4483.6,4483.5,3.9287]
[1759914243175,3.3863,4484.2,4484.1,1.41895]
[1759914243477,9.66457304,4484.2,4484.1,1.41895]
[1759914243769,9.66457304,4484.2,4484.0,0.40126]
[1759914243970,3.91699865,4484.1,4484.0,0.40126]
[1759914244475,6.76247169,4484.1,4484.0,0.40126]
[1759914245770,6.76247169,4484.1,4482.8,0.00179706]
[1759914245771,3.9538,4483.0,4482.9,1.41906]
[1759914245978,4.1788,4483.0,4482.9,1.41906]
[1759914246174,7.0251639,4483.0,4482.9,1.41906]
[1759914247265,7.0251639,4483.0,4482.9,0.40136]
[1759914259889,7.0251639,4483.0,4482.9,1.32936]
[1759914260894,7.55557224,4483.0,4482.9,0.40136]
[1759914261475,7.55556621,4483.0,4482.9,0.40136]
[1759914261880,7.55556621,4483.0,4482.8,0.00179706]
[1759914261881,7.95692621,4483.0,4482.8,0.00179706]
[1759914262079,4.01020231,4482.9,4482.8,0.00179706]
[1759914262482,6.87998733,4482.9,4482.8,0.00179706]
[1759914264582,6.87998733,4482.9,4482.8,0.92979706]
[1759914264783,6.57458502,4482.9,4482.8,3.43489706]
[1759914265584,6.57458502,4482.9,4482.8,0.92979706]
[1759914265784,6.57458502,4482.9,4482.8,0.00179706]
[1759914267792,6.57458502,4482.9,4482.8,3.43489706]
[1759914267989,6.34958502,4482.9,4482.8,3.43489706]
[1759914268190,6.57458502,4482.9,4482.8,3.43489706]
[1759914270293,6.57458502,4482.9,4482.8,1.91779706]
[1759914270591,6.57458502,4482.9,4482.8,0.92979706]
[1759914270990,6.57458502,4482.9,4482.8,2.44689706]
[1759914271185,2.86978502,4482.9,4482.8,3.43489706]
[1759914271386,5.55948502,4482.9,4482.8,3.43489706]
[1759914271592,2.6897,4482.9,4482.8,3.43489706]
[1759914271791,6.59933505,4482.9,4482.8,3.43489706]
[1759914272182,6.59933505,4482.9,4482.8,44.23489706]
[1759914272692,6.59933505,4482.9,4482.8,42.71779706]
[1759914275495,6.59933505,4482.9,4482.8,44.23489706]
[1759914277300,6.59933505,4482.9,4482.8,42.71779706]
[1759914277494,7.13140341,4482.9,4482.8,0.00179706]
[1759914280598,7.13140341,4482.9,4482.8,0.91959706]
[1759914284398,7.13140341,4482.9,4482.8,0.00179706]
[1759914286094,7.13147399,4482.9,4482.8,0.00179706]
[1759914287204,6.90647399,4482.9,4482.8,3.36159706]
[1759914287502,7.13147399,4482.9,4482.8,3.36159706]
[1759914288504,7.13147399,4482.9,4482.8,1.88479706]
[1759914288700,7.13147399,4482.9,4482.8,0.00179706]
[1759914291705,7.13147399,4482.9,4482.8,0.99389706]
[1759914292006,7.13147399,4482.9,4482.8,0.00179706]
[1759914293996,7.13147399,4482.9,4482.8,0.99389706]
[1759914295007,7.13147399,4482.9,4482.8,0.00179706]
[1759914301907,0.9517,4482.0,4481.9,3.4341]
[1759914302208,5.13938099,4482.0,4481.9,3.83555]
[1759914302812,5.14139391,4482.0,4481.9,3.83794735]
[1759914303613,3.70809391,4482.0,4481.9,3.83794735]
[1759914304217,3.70809391,4482.0,4481.9,44.63794735]
[1759914304711,3.2078,4482.8,4481.9,44.63794735]
[1759914304712,3.2078,4482.8,4481.9,49.23649735]
[1759914304916,1.4333,4483.4,4483.3,1.9573]
[1759914305117,34.809,4484.1,4483.3,1.9573]
[1759914305314,34.809,4484.1,4483.0,0.5744]
[1759914305315,1.20215577,4484.5,4484.4,1.4768]
[1759914305509,3.9183,4485.0,4484.9,1.9573]
[1759914305713,2.71193262,4485.0,4484.7,40.8]
[1759914306012,0.5516,4484.5,4484.4,0.40122]
[1759914306214,7.3511,4484.5,4484.4,1.39332]
[1759914306414,2.485,4484.0,4483.9,2.4689]
[1759914306613,3.5917,4484.0,4483.9,44.2341]
[1759914306815,0.225,4484.0,4483.9,44.63537]
[1759914307619,1.4333,4484.9,4484.8,3.83529]
[1759914307819,1.6583,4484.9,4484.8,3.83529]
[1759914308018,6.20732983,4484.9,4484.8,3.83529]
[1759914308217,5.45062983,4484.9,4484.8,3.83529]
[1759914308614,6.43232983,4484.9,4484.8,3.83529]
[1759914309715,6.43232983,4484.9,4484.8,3.4341]
[1759914309918,1.4333,4484.3,4484.1,0.40125]
[1759914310212,6.53241139,4484.2,4484.0,0.40126]
[1759914310714,0.5516,4484.0,4483.8,0.40128]
[1759914310919,2.2099,4484.0,4483.8,0.40128]
[1759914311114,5.10912706,4484.0,4483.8,0.40127]
[1759914311314,5.10912706,4484.0,4483.5,0.1836815]
[1759914311715,3.3667,4483.9,4483.6,0.40129]
[1759914312023,3.3667,4483.7,4483.6,1.39339]
[1759914312318,3.3667,4483.7,4483.6,42.19339]
[1759914314415,6.25818647,4483.7,4483.6,40.8]
[1759914314617,3.3667,4483.4,4483.3,0.40132]
[1759914314815,3.5917,4483.4,4483.3,0.40132]
[1759914315012,6.50293033,4483.4,4483.3,0.40132]
[1759914315720,5.52123033,4483.4,4483.3,3.83542]
[1759914315922,6.50293033,4483.4,4483.3,3.83542]
[1759914316719,1.376,4483.3,4483.1,0.40134]
[1759914316925,3.4213,4483.2,4483.1,1.30884]
[1759914317124,6.35703818,4483.2,4483.1,1.30884]
[1759914317823,6.35703818,4483.2,4483.1,0.40134]
[1759914318323,0.5543,4483.0,4482.7,3.2078]
[1759914318621,3.1963,4482.8,4482.7,1.30888]
[1759914318822,6.4041,4482.8,4482.5,0.40139]
[1759914319028,3.1963,4482.6,4482.5,0.40139]
[1759914319323,6.13286313,4482.6,4482.5,0.40139]
[1759914320525,1.8203,4482.2,4482.1,4.51673]
[1759914320722,3.4213,4482.2,4482.1,3.72623]
[1759914320927,2.0453,4482.2,4482.0,40.8]
[1759914321126,3.7506,4482.0,4481.9,0.00239735]
[1759914321326,3.9756,4482.0,4481.9,0.00239735]
[1759914321527,6.93132903,4482.0,4481.9,0.00239735]
[1759914323130,3.1963,4481.2,4481.1,0.40151]
[1759914323432,6.31222505,4481.2,4481.1,0.40151]
[1759914324234,6.31424387,4481.2,4481.1,0.40355624]
[1759914331535,1.9303,4482.5,4481.1,10.07974624]
[1759914331730,1.376,4482.4,4482.1,3.2078]
[1759914331930,0.5543,4482.5,4482.4,0.4014]
[1759914331931,0.7803,4482.5,4482.4,0.4014]
[1759914332233,2.1563,4482.5,4482.4,41.2014]
[1759914332736,2.15909476,4482.5,4482.4,41.2014]
[1759914332936,0.22879476,4482.5,4482.4,46.2014]
[1759914333640,1.376,4483.3,4482.4,45.8]
[1759914333941,2.1563,4483.5,4483.4,0.40131]
[1759914334637,2.1587585,4483.5,4483.4,41.20131]
[1759914335542,8.32297635,4483.5,4483.4,41.20131]
[1759914335734,5.11517635,4483.5,4483.4,41.20131]
[1759914339537,2.1587585,4483.5,4483.4,41.20131]
[1759914340741,0.7827585,4483.5,4483.4,46.20131]
[1759914340941,0.2284585,4483.5,4483.4,46.20131]
[1759914342146,0.0024585,4483.5,4483.4,46.42731]
[1759914342352,0.0024585,4483.5,4483.4,41.42731]
[1759914342745,8.5e-06,4483.5,4483.4,41.42731]
[1759914347239,1.3657085,4483.5,4483.4,41.20131]
[1759914347444,1.9544085,4483.5,4483.4,41.20131]
[1759914347643,4.83516858,4483.5,4483.4,41.20131]
[1759914349039,1.9544085,4483.5,4483.4,41.20131]
[1759914350248,1.9544085,4483.5,4483.4,40.8]
[1759914350454,4.9152243,4483.5,4483.4,40.8]
[1759914350656,3.2844,4483.4,4483.3,0.40132]
[1759914351152,6.16268364,4483.4,4483.3,0.40132]
[1759914354558,6.38868364,4483.4,4483.3,0.40132]
[1759914355152,3.2844,4483.2,4483.1,40.8]
[1759914355553,6.16122652,4483.2,4483.0,0.40135]
[1759914355754,3.5104,4483.1,4483.0,0.40135]
[1759914356063,3.2844,4482.6,4482.5,3.2078]
[1759914356261,2.5074,4482.5,4482.4,0.4014]
[1759914356556,3.8731,4482.5,4482.4,41.2014]
[1759914357256,0.9535,4482.1,4482.0,0.40144]
[1759914357559,6.44896903,4482.1,4482.0,0.40144]
[1759914359562,3.2844,4481.7,4481.6,40.8]
[1759914359763,3.5104,4481.7,4481.6,40.8]
[1759914359963,3.5104,4481.7,4481.6,41.20148]
[1759914366763,2.5074,4481.5,4481.2,0.40151]
[1759914366958,1.3657,4481.2,4481.1,0.40356624]
[1759914367264,3.5104,4481.2,4481.1,41.20356624]
[1759914369159,3.5104,4481.2,4481.1,0.40356624]
[1759914369665,3.5104,4481.2,4481.1,41.20356624]
[1759914369869,6.45708652,4481.2,4481.1,40.80204624]
[1759914370065,6.45708652,4481.2,4481.1,0.00204624]
[1759914374575,4.53838652,4481.2,4481.1,0.00204624]
[1759914374977,5.49188652,4481.2,4481.1,0.00204624]
[1759914375879,4.53838652,4481.2,4481.1,0.00204624]
[1759914376967,1.5917,4481.2,4481.1,0.00204624]
[1759914380576,0.5887,4481.5,4481.1,0.00204624]
[1759914380882,1.9387,4481.5,4481.4,0.40149]
[1759914381180,2.1637,4481.5,4481.4,0.40149]
[1759914382076,0.225,4481.5,4481.4,3.83529]
[1759914382377,1.9387,4482.0,4481.9,0.40145]
[1759914382573,3.0524,4482.0,4481.9,0.40145]
[1759914382774,1.9387,4482.0,4481.9,41.20145]
[1759914382973,0.5887,4482.5,4482.1,0.40143]
[1759914382974,1.35,4482.2,4482.1,0.40143]
[1759914384077,0.225,4482.3,4482.1,0.40143]
[1759914384284,1.575,4482.3,4482.1,0.40143]
[1759914384775,0.225,4482.3,4482.1,0.40143]
[1759914385176,1.35,4482.6,4482.4,0.4014]
[1759914385381,1.35,4482.6,4482.5,3.2078]
[1759914385683,3.7655085,4483.5,4482.5,3.2078]
[1759914385684,1.35,4482.9,4482.5,3.4328]
[1759914385883,1.9387,4483.0,4482.9,0.40136]
[1759914386082,0.225,4483.2,4483.0,0.40135]
[1759914386277,1.575,4483.2,4483.1,3.2078]
[1759914386478,0.225,4483.2,4483.1,3.2078]
[1759914387181,0.5577085,4483.5,4483.4,0.40131]
[1759914387378,8.5e-06,4483.5,4483.4,0.40131]
[1759914387884,0.5577085,4483.5,4483.4,0.40131]
[1759914388074,1.9077085,4483.5,4483.4,41.20131]
[1759914389589,8.5e-06,4483.5,4483.4,41.20131]
[1759914390985,8.5e-06,4483.5,4483.4,41.42631]
[1759914393385,0.5577085,4483.5,4483.4,41.42631]
[1759914393583,1.9077085,4483.5,4483.4,41.42631]
[1759914394091,0.5577,4484.0,4483.9,0.40127]
[1759914394282,1.9077,4484.0,4483.9,0.40127]
[1759914395183,1.91023883,4484.0,4483.9,0.40127]
[1759914396590,3.1284,4483.9,4483.4,41.20131]
[1759914396888,8.81783789,4484.0,4483.4,41.20131]
[1759914396889,1.9077,4483.5,4483.4,40.8]
[1759914397287,4.76997008,4483.5,4483.4,40.8]
[1759914397991,9.76997008,4483.5,4483.4,40.8]
[1759914398689,3.1284,4482.8,4482.7,3.2078]
[1759914399193,3.1284,4482.8,4482.7,44.40917]
[1759914403689,3.0767,4483.0,4482.9,0.40136]
[1759914403899,3.9508,4483.0,4482.8,0.40137]
[1759914404195,3.1681,4482.8,4482.7,41.20137]
[1759914404889,3.1681,4482.8,4482.2,3.2078]
[1759914404890,1.3802,4482.4,4482.2,3.2078]
[1759914405098,3.3931,4482.3,4482.2,3.2078]
[1759914405286,6.26679132,4482.3,4482.2,3.2078]
[1759914405491,3.3931,4482.3,4482.2,3.2078]
[1759914405690,6.26679132,4482.3,4482.2,3.2078]
[1759914407203,4.47889132,4482.3,4482.2,3.2078]
[1759914407496,5.37179132,4482.3,4482.2,3.2078]
[1759914408397,6.24719132,4482.3,4482.2,3.2078]
[1759914409700,4.47889132,4482.3,4482.2,3.2078]
[1759914409892,0.5556,4482.5,4482.3,0.40141]
[1759914410193,0.225,4482.7,4482.5,0.40139]
[1759914410393,0.225,4482.7,4482.6,40.8]
[1759914410601,2.8204,4483.5,4483.4,0.40131]
[1759914410800,3.9208,4483.5,4483.3,0.40132]
[1759914411095,1.3698,4483.4,4483.3,0.40132]
[1759914412692,3.1381,4483.4,4483.3,0.40132]
[1759914414192,2.2627,4483.4,4483.3,0.40132]
[1759914414797,1.3698,4483.4,4483.3,0.40132]
[1759914415092,0.7827,4483.5,4483.3,0.40132]
[1759914415293,2.1525,4483.5,4483.3,0.40132]
[1759914415891,2.1525,4483.5,4483.4,40.8]
[1759914420896,0.225,4483.5,4483.4,40.8]
[1759914421498,1.885,4483.5,4483.4,40.8]
[1759914429905,0.225,4483.8,4483.4,40.8]
[1759914430109,0.225,4483.8,4483.7,4.97879]
[1759914432410,0.225,4483.8,4483.7,5.20379]
[1759914434211,0.00253883,4484.0,4483.9,2.19277]
[1759914434416,1.37233883,4484.0,4483.9,2.91147]
[1759914435817,0.00253883,4484.0,4483.9,2.91147]
[1759914436716,0.00253883,4484.0,4483.9,3.0923846]
[1759914437215,1.32053883,4484.0,4483.9,3.0923846]
[1759914438716,1.86363883,4484.0,4483.9,2.91147]
[1759914439316,1.83776942,4484.0,4483.9,2.91147]
[1759914440818,1.83776942,4484.0,4483.9,3.09774911]
[1759914441115,1.83776942,4484.0,4483.9,2.91147]
[1759914442611,1.32053883,4484.0,4483.9,2.91147]
[1759914446724,0.00253883,4484.0,4483.9,2.91147]
[1759914449121,0.00253883,4484.0,4483.9,3.13647]
[1759914450822,0.5152,4485.0,4484.9,1.33918]
[1759914451029,3.2078,4485.9,4485.4,2.26934]
[1759914451216,2.10820926,4485.5,4485.4,3.49944]
[1759914451416,2.06180926,4485.5,4485.4,3.49944]
[1759914451616,0.225,4485.5,4485.4,3.49944]
[1759914451926,0.22725143,4485.5,4485.4,3.50192249]
[1759914452919,2.39445143,4485.5,4485.4,3.50192249]
[1759914453319,3.81565143,4485.5,4485.4,1.87068249]
[1759914453626,6.7804065,4485.5,4485.4,0.00248249]
[1759914453924,6.7804065,4485.5,4485.4,0.94048249]
[1759914454327,12.1815365,4485.5,4485.4,0.00248249]
[1759914454513,11.7804065,4485.5,4485.4,0.00248249]
[1759914455327,12.29788929,4485.5,4485.4,0.00248249]
[1759914456323,3.0453,4484.7,4484.6,0.4012]
[1759914456521,3.2703,4484.7,4484.6,0.4012]
[1759914457420,3.2703,4484.7,4484.6,0.40277138]
[1759914457816,3.2703,4484.7,4484.6,0.00157138]
[1759914458022,6.18052787,4484.7,4484.6,0.00157138]
[1759914458822,6.18052787,4484.7,4484.2,40.8]
[1759914458823,10.33132787,4484.7,4484.1,3.2078]
[1759914459027,3.5884,4484.0,4483.9,0.40126]
[1759914459219,3.8134,4484.0,4483.9,0.40126]
[1759914459426,1.7273,4483.8,4483.7,41.20129]
[1759914459732,3.0453,4483.8,4483.7,41.20129]
[1759914460028,3.0453,4483.8,4483.7,41.20315164]
[1759914460733,3.0453,4483.8,4483.7,0.40315164]
[1759914461633,5.98137831,4483.8,4483.7,0.00186164]
[1759914461931,6.20637831,4483.8,4483.7,0.00186164]
[1759914464832,6.20637831,4483.8,4483.7,0.90656164]
[1759914465434,6.20637831,4483.8,4483.7,1.30785164]
[1759914465832,6.20637831,4483.8,4483.7,3.42095164]
[1759914468039,6.20637831,4483.8,4483.7,1.82246164]
[1759914468940,6.20637831,4483.8,4483.7,0.00186164]
[1759914470239,6.60765831,4483.8,4483.7,0.00186164]
[1759914470546,6.60765831,4483.8,4483.1,3.60914]
[1759914470547,3.0298,4483.2,4483.1,3.60914]
[1759914470730,3.2548,4483.2,4483.1,0.40134]
[1759914471041,6.1379231,4483.2,4483.1,0.40134]
[1759914471243,6.1379231,4483.2,4483.1,1.24074]
[1759914471434,6.1379231,4483.2,4483.1,1.24288292]
[1759914473950,6.1379231,4483.2,4483.1,0.00214292]
[1759914474742,6.1379231,4483.2,4483.1,0.84154292]
[1759914480733,5.2691231,4483.2,4483.1,1.76634292]
[1759914480940,1.5019,4483.2,4483.1,6.16204292]
[1759914481945,2.3707,4483.2,4483.1,6.16204292]
[1759914482147,3.2548,4483.2,4483.1,0.84154292]
[1759914482341,2.3707,4483.2,4483.1,2.95424292]
[1759914483552,6.10501279,4483.2,4483.1,0.00214292]
[1759914486955,6.10501279,4483.2,4483.1,2.95424292]
[1759914487340,6.10501279,4483.2,4483.1,1.76634292]
[1759914487648,6.10501279,4483.2,4483.1,2.95424292]
[1759914489248,2.3707,4483.2,4483.1,6.16204292]
[1759914489451,0.225,4483.2,4483.1,11.16204292]
[1759914489954,1.2769,4483.9,4483.8,2.9521]
[1759914490155,1.5019,4483.9,4483.8,3.35338]
[1759914490348,4.43199417,4483.9,4483.8,3.35338]
[1759914490654,0.225,4483.9,4483.8,3.35338]
[1759914491050,39.2867,4484.7,4484.6,3.35331]
[1759914491357,2.6888,4485.0,4484.9,3.35328]
[1759914491548,2.9138,4485.0,4484.9,3.35328]
[1759914491750,5.76268808,4485.0,4484.9,3.35328]
[1759914491951,2.9138,4485.0,4484.9,3.35328]
[1759914492151,0.225,4485.0,4484.9,3.35328]
[1759914492550,0.00225143,4485.5,4485.4,3.35324]
[1759914492757,0.00225143,4485.5,4485.4,6.56104]
[1759914492758,0.22725143,4485.5,4485.4,6.56104]
[1759914493059,0.22725143,4485.5,4485.4,47.36104]
[1759914493547,2.1457,4486.2,4486.1,1.7642]
[1759914493753,2.3707,4486.2,4486.1,2.9521]
[1759914493955,2.3707,4486.2,4486.1,3.35317]
[1759914494151,1.5019,4486.2,4486.1,3.35317]
[1759914494541,1.5038608,4486.2,4486.1,3.35317]
[1759914494746,0.2269608,4486.2,4486.1,3.35317]
[1759914497449,1.5526608,4486.2,4486.1,3.35317]
[1759914497642,2.4401608,4486.2,4486.1,3.35317]
[1759914498351,2.4401608,4486.2,4486.1,0.8394]
[1759914498352,3.3123608,4486.2,4486.1,0.8394]
[1759914498655,6.20311014,4486.2,4486.1,0.8394]
[1759914499154,2.2676,4486.0,4485.9,3.60889]
[1759914499342,3.5933,4486.0,4485.9,4.43699]
[1759914500044,3.5933,4486.0,4485.9,4.0359]
[1759914500252,3.5933,4486.0,4485.4,40.8]
[1759914500253,1.8336,4485.5,4485.4,44.40894]
[1759914500752,1.8336,4485.5,4485.4,44.0078]
[1759914500952,4.75893831,4485.5,4485.4,44.0078]
[1759914501150,4.75893831,4485.5,4485.4,3.2078]
[1759914501151,6.51863831,4485.5,4485.4,3.2078]
[1759914501346,3.0854,4484.9,4484.8,5.79991408]
[1759914501551,3.3104,4484.9,4484.8,44.0078]
[1759914503548,3.3104,4484.9,4484.8,3.2078]